bitfinex/quotes_BTCUSD_20250812
["timestamp","ask_amount","ask_price","bid_price","bid_amount"]
[1755009630472,4.872e-05,119230.0,119220.0,0.82387892]
[1755009630709,0.00521872,119230.0,119220.0,0.97985992]
[1755009633187,4.872e-05,119230.0,119220.0,0.97985992]
[1755009633646,4.872e-05,119230.0,119220.0,0.98282992]
[1755009636245,4.872e-05,119230.0,119220.0,0.97985992]
[1755009638565,4.872e-05,119230.0,119220.0,0.28178133]
[1755009638817,4.872e-05,119230.0,119220.0,0.97981992]
[1755009639510,0.00514872,119230.0,119220.0,0.97981992]
[1755009639785,0.00514872,119230.0,119220.0,0.84693992]
[1755009640039,0.17289173,119230.0,119220.0,0.17175708]
[1755009640281,0.00514872,119230.0,119220.0,0.30247708]
[1755009640539,0.00514872,119230.0,119220.0,0.86975567]
[1755009640787,4.872e-05,119230.0,119220.0,0.73909567]
[1755009641009,0.00514872,119230.0,119220.0,0.73703567]
[1755009641236,0.00514872,119230.0,119220.0,0.86775567]
[1755009642106,0.00514872,119230.0,119220.0,0.86575567]
[1755009645237,4.872e-05,119230.0,119220.0,0.95053892]
[1755009645679,4.872e-05,119230.0,119220.0,0.95350892]
[1755009646606,4.872e-05,119230.0,119220.0,0.38823033]
[1755009646832,4.872e-05,119230.0,119220.0,0.95750892]
[1755009647051,4.872e-05,119230.0,119220.0,0.95453892]
[1755009647981,4.872e-05,119230.0,119220.0,0.95449892]
[1755009648819,4.872e-05,119230.0,119220.0,0.82381892]
[1755009649289,4.872e-05,119230.0,119220.0,0.95449892]
[1755009651073,0.00216872,119230.0,119220.0,0.95449892]
[1755009651284,4.872e-05,119230.0,119220.0,0.38722033]
[1755009651514,4.872e-05,119230.0,119220.0,0.95449892]
[1755009652394,4.872e-05,119230.0,119220.0,0.95746892]
[1755009652844,4.872e-05,119230.0,119220.0,1.52474751]
[1755009653056,4.872e-05,119230.0,119220.0,2.23930951]
[1755009653260,4.872e-05,119230.0,119220.0,2.26448751]
[1755009653921,4.872e-05,119230.0,119220.0,1.69720892]
[1755009655310,4.872e-05,119230.0,119220.0,0.85196692]
[1755009655525,4.872e-05,119230.0,119220.0,0.98260692]
[1755009655729,4.872e-05,119230.0,119220.0,1.14108492]
[1755009656144,4.872e-05,119230.0,119220.0,0.57380633]
[1755009656501,4.872e-05,119230.0,119220.0,1.14108492]
[1755009656715,4.872e-05,119230.0,119220.0,0.57380633]
[1755009657096,4.872e-05,119230.0,119220.0,1.12576292]
[1755009657985,4.872e-05,119230.0,119220.0,0.99512292]
[1755009658210,4.872e-05,119230.0,119220.0,1.12576292]
[1755009658651,4.872e-05,119230.0,119220.0,0.98260692]
[1755009659117,4.872e-05,119230.0,119220.0,0.85196692]
[1755009659330,4.872e-05,119230.0,119220.0,0.28171833]
[1755009659540,0.00514872,119230.0,119220.0,0.95235892]
[1755009660390,4.872e-05,119230.0,119220.0,0.95441892]
[1755009663861,0.00514872,119230.0,119220.0,0.95441892]
[1755009664374,0.17289173,119230.0,119220.0,0.25448033]
[1755009664586,0.24050213,119230.0,119220.0,0.38508033]
[1755009664796,0.24050213,119230.0,119220.0,0.08672325]
[1755009665007,0.07275912,119230.0,119220.0,0.95235892]
[1755009665873,0.24050213,119230.0,119220.0,0.95035892]
[1755009666095,0.24050213,119230.0,119220.0,0.38108033]
[1755009666774,0.24150213,119230.0,119220.0,0.38108033]
[1755009666968,0.07375912,119230.0,119220.0,0.94835892]
[1755009667225,0.07475912,119230.0,119220.0,0.94835892]
[1755009668426,0.24250213,119230.0,119220.0,0.94835892]
[1755009669093,0.24250213,119230.0,119220.0,0.38108033]
[1755009670871,0.07475912,119230.0,119220.0,0.94835892]
[1755009671098,0.24250213,119230.0,119220.0,0.94835892]
[1755009671577,0.24250213,119230.0,119220.0,0.38108033]
[1755009673573,0.24250213,119230.0,119220.0,0.21332325]
[1755009673806,0.16775708,119220.0,119200.0,0.74344706]
[1755009674033,0.16775708,119220.0,119200.0,0.25050848]
[1755009674034,0.16777116,119210.0,119200.0,0.25050848]
[1755009674261,0.17286116,119210.0,119200.0,0.38106848]
[1755009675717,0.17286116,119210.0,119200.0,0.94934707]
[1755009676166,0.17286116,119210.0,119200.0,0.94834707]
[1755009676380,0.17286116,119210.0,119200.0,0.38306848]
[1755009676590,0.17286116,119210.0,119200.0,0.38506848]
[1755009677044,0.17286116,119210.0,119200.0,0.38306848]
[1755009677664,0.17286116,119210.0,119200.0,0.13056]
[1755009678899,0.17286116,119210.0,119200.0,0.29834523]
[1755009679314,0.17286116,119210.0,119200.0,0.13056]
[1755009679530,0.17386116,119210.0,119200.0,0.13056]
[1755009679744,0.16778523,119200.0,119190.0,0.17617718]
[1755009679926,0.16991523,119200.0,119190.0,0.38946043]
[1755009680231,0.17287523,119200.0,119190.0,0.38946043]
[1755009680897,0.17287523,119200.0,119190.0,0.29835931]
[1755009681727,0.17287523,119200.0,119190.0,0.8656379]
[1755009682603,0.16779931,119190.0,119180.0,0.0004]
[1755009682811,0.17288931,119190.0,119180.0,0.0004]
[1755009683023,0.17288931,119190.0,119180.0,0.13096]
[1755009683925,0.17388931,119190.0,119180.0,0.13144837]
[1755009684138,0.17588931,119190.0,119180.0,0.13144837]
[1755009684348,0.21251376,119190.0,119180.0,0.13144837]
[1755009684557,0.28012416,119190.0,119180.0,0.00088837]
[1755009684822,0.84740275,119190.0,119180.0,0.13144837]
[1755009685035,0.24349971,119190.0,119180.0,0.13144837]
[1755009685261,0.24249971,119190.0,119180.0,0.13144837]
[1755009685477,0.17488931,119190.0,119180.0,0.13144837]
[1755009685687,0.17688931,119190.0,119180.0,0.13144837]
[1755009686314,0.21361376,119190.0,119180.0,0.00088837]
[1755009686556,0.78089235,119190.0,119180.0,0.00088837]
[1755009686987,0.21361376,119190.0,119180.0,0.00088837]
[1755009687882,0.17688931,119190.0,119180.0,0.00088837]
[1755009688978,0.17688931,119190.0,119180.0,0.16870176]
[1755009689430,0.17688931,119190.0,119180.0,0.73801035]
[1755009689431,0.17179931,119190.0,119180.0,0.73801035]
[1755009689631,0.004,119190.0,119180.0,0.73801035]
[1755009690275,0.002,119190.0,119180.0,0.73801035]
[1755009690542,0.24673011,119210.0,119190.0,0.16779931]
[1755009690754,0.17911971,119210.0,119200.0,0.13056]
[1755009690967,0.18124971,119210.0,119200.0,0.13056]
[1755009691175,0.18124971,119210.0,119200.0,0.29834523]
[1755009691400,0.18124971,119210.0,119200.0,0.13056]
[1755009692043,0.18124971,119210.0,119200.0,0.29834523]
[1755009692257,0.18124971,119210.0,119200.0,0.30037523]
[1755009692483,0.18124971,119210.0,119200.0,0.30041523]
[1755009692708,0.00509,119210.0,119200.0,0.30041523]
[1755009692958,0.16877116,119210.0,119200.0,0.30041523]
[1755009693172,0.002,119210.0,119200.0,0.30041523]
[1755009693391,0.002,119210.0,119200.0,0.86769382]
[1755009694928,0.001,119210.0,119200.0,0.86769382]
[1755009696021,0.17910493,119220.0,119210.0,0.16777116]
[1755009696244,0.16777116,119210.0,119200.0,0.29838523]
[1755009696485,0.17302116,119210.0,119200.0,0.29838523]
[1755009697808,0.17302116,119210.0,119200.0,4e-05]
[1755009699128,0.16777116,119210.0,119200.0,0.16981523]
[1755009699362,0.16777116,119210.0,119200.0,0.00203]
[1755009699571,0.16993116,119210.0,119200.0,0.00203]
[1755009699778,0.17302116,119210.0,119200.0,4e-05]
[1755009700437,0.17302116,119210.0,119200.0,0.00199]
[1755009701294,0.16778523,119200.0,119190.0,0.87398786]
[1755009701543,0.16778523,119200.0,119190.0,0.95866111]
[1755009701760,0.16994523,119200.0,119190.0,0.95866111]
[1755009702194,0.16778523,119200.0,119190.0,0.95866111]
[1755009702613,0.16778523,119200.0,119190.0,0.96066111]
[1755009702826,0.16778523,119200.0,119190.0,0.96266111]
[1755009703009,0.17086116,119210.0,119190.0,0.96066111]
[1755009703469,0.16778523,119200.0,119190.0,0.96070111]
[1755009706156,0.74031382,119200.0,119190.0,0.00204]
[1755009706387,0.82279825,119200.0,119190.0,0.00204]
[1755009707636,0.25551966,119200.0,119190.0,0.00204]
[1755009707849,0.25551966,119200.0,119190.0,4e-05]
[1755009708076,0.25751966,119200.0,119190.0,4e-05]
[1755009708300,0.16779931,119190.0,119180.0,0.13136837]
[1755009708516,0.16995931,119190.0,119180.0,0.13140837]
[1755009708721,0.17304931,119190.0,119180.0,0.13140837]
[1755009709447,0.21558121,119190.0,119180.0,0.13140837]
[1755009709623,0.34606121,119190.0,119180.0,0.00092837]
[1755009709849,0.9133398,119190.0,119180.0,0.00092837]
[1755009710281,0.9143398,119190.0,119180.0,0.00092837]
[1755009710943,0.34706121,119190.0,119180.0,0.00092837]
[1755009711371,0.34806121,119190.0,119180.0,0.00092837]
[1755009716844,0.9153398,119190.0,119180.0,0.00092837]
[1755009717038,0.34806121,119190.0,119180.0,0.00092837]
[1755009717460,0.9153398,119190.0,119180.0,0.00092837]
[1755009718313,0.34806121,119190.0,119180.0,0.00092837]
[1755009720623,0.9153398,119190.0,119180.0,0.00092837]
[1755009720858,0.34806121,119190.0,119180.0,0.00092837]
[1755009721492,0.21758121,119190.0,119180.0,0.00092837]
[1755009722573,0.21758121,119190.0,119180.0,0.00291837]
[1755009723019,0.21758121,119190.0,119180.0,0.00092837]
[1755009723727,0.21233121,119190.0,119180.0,0.17073176]
[1755009723949,0.16979931,119190.0,119180.0,0.73801035]
[1755009724135,0.002,119190.0,119180.0,0.74098035]
[1755009724382,0.002,119190.0,119180.0,0.17370176]
[1755009724611,0.16979931,119190.0,119180.0,0.17073176]
[1755009724827,0.002,119190.0,119180.0,0.17073176]
[1755009725729,0.002,119190.0,119180.0,0.74095035]
[1755009725962,0.002,119190.0,119180.0,0.8236736]
[1755009726652,0.17930493,119220.0,119200.0,0.16777351]
[1755009726885,0.00201,119210.0,119200.0,0.29821351]
[1755009727106,0.17294116,119210.0,119200.0,0.30039351]
[1755009727933,0.00517,119210.0,119200.0,0.30039351]
[1755009728400,0.17294116,119210.0,119200.0,0.30039351]
[1755009728649,0.00517,119210.0,119200.0,0.30039351]
[1755009729045,0.17294116,119210.0,119200.0,0.30039351]
[1755009729288,0.00617,119210.0,119200.0,0.30039351]
[1755009729513,0.17394116,119210.0,119200.0,0.30039351]
[1755009729726,0.17494116,119210.0,119200.0,0.30039351]
[1755009730808,0.21004977,119210.0,119200.0,0.29825351]
[1755009731867,0.17494116,119210.0,119200.0,0.29825351]
[1755009733987,0.17494116,119210.0,119200.0,0.30039351]
[1755009737139,0.17494116,119210.0,119200.0,0.29825351]
[1755009740517,0.002,119210.0,119200.0,0.8676721]
[1755009740694,0.002,119210.0,119200.0,0.8706121]
[1755009741114,0.002,119210.0,119200.0,0.87892218]
[1755009742288,0.002,119210.0,119200.0,1.52892402]
[1755009742496,0.002,119210.0,119200.0,0.96164543]
[1755009743505,0.23851478,119230.0,119220.0,0.16775708]
[1755009743747,0.24052478,119230.0,119220.0,0.29811708]
[1755009744708,0.24052478,119230.0,119220.0,0.2982397]
[1755009745550,0.24252478,119230.0,119220.0,0.13048262]
[1755009745753,0.89252662,119230.0,119220.0,0.00016262]
[1755009745955,0.40773246,119230.0,119220.0,0.00016262]
[1755009746337,0.97701105,119230.0,119220.0,0.00016262]
[1755009746540,0.89452662,119230.0,119220.0,0.00016262]
[1755009748022,0.91197564,119230.0,119220.0,0.00016262]
[1755009748263,0.93690564,119230.0,119220.0,0.00016262]
[1755009748917,0.96209864,119230.0,119220.0,0.00016262]
[1755009749131,0.99298258,119230.0,119220.0,0.00016262]
[1755009749340,1.07346701,119230.0,119220.0,0.00016262]
[1755009749524,1.10631324,119230.0,119220.0,0.00016262]
[1755009749735,1.10931324,119230.0,119220.0,0.00116262]
[1755009750093,1.11231324,119230.0,119220.0,0.00016262]
[1755009750319,0.54503538,119230.0,119220.0,0.00016262]
[1755009750496,0.54997408,119230.0,119220.0,0.00116262]
[1755009750699,1.14225267,119230.0,119220.0,0.00116262]
[1755009750936,0.54997408,119230.0,119220.0,0.00116262]
[1755009751083,1.14225267,119230.0,119220.0,0.00116262]
[1755009752415,1.1481381,119230.0,119220.0,0.00116262]
[1755009754301,1.1231381,119230.0,119220.0,0.00116262]
[1755009754539,1.1481381,119230.0,119220.0,0.00116262]
[1755009756349,1.1231381,119230.0,119220.0,0.00116262]
[1755009756477,1.1481381,119230.0,119220.0,0.00116262]
[1755009757211,0.57497408,119230.0,119220.0,0.00116262]
[1755009757410,1.14225267,119230.0,119220.0,0.00116262]
[1755009757721,1.14813835,119230.0,119220.0,0.00116262]
[1755009757913,1.12313835,119230.0,119220.0,0.00116262]
[1755009758115,1.14813835,119230.0,119220.0,0.00116262]
[1755009758316,1.12313835,119230.0,119220.0,0.00116262]
[1755009758485,1.14813835,119230.0,119220.0,0.00116262]
[1755009759135,1.12313835,119230.0,119220.0,0.00116262]
[1755009759457,0.98697267,119230.0,119220.0,0.00116262]
[1755009759684,1.09228267,119230.0,119220.0,0.00116262]
[1755009761452,1.15228267,119230.0,119220.0,0.00116262]
[1755009761699,1.17555267,119230.0,119220.0,0.00116262]
[1755009761920,0.7350779,119190.0,119180.0,0.0004]
[1755009762142,0.94991233,119190.0,119180.0,0.00292837]
[1755009762563,1.0530346,119190.0,119180.0,0.00088837]
[1755009763195,1.079499,119190.0,119180.0,0.00088837]
[1755009763400,1.081499,119190.0,119180.0,0.00088837]
[1755009764089,1.080499,119190.0,119180.0,0.00088837]
[1755009764312,1.082499,119190.0,119180.0,0.00088837]
[1755009765415,1.080499,119190.0,119180.0,0.00088837]
[1755009765867,1.083499,119190.0,119180.0,0.00088837]
[1755009766101,1.1511094,119190.0,119180.0,0.00088837]
[1755009766318,1.1993794,119190.0,119180.0,0.00088837]
[1755009767128,1.1973794,119190.0,119180.0,0.00088837]
[1755009768202,1.2013794,119190.0,119180.0,0.00188837]
[1755009768633,1.1983794,119190.0,119180.0,0.00188837]
[1755009768857,1.2023794,119190.0,119180.0,0.00188837]
[1755009769568,0.752541,119180.0,119170.0,0.0004]
[1755009769783,1.05304868,119180.0,119170.0,0.00054643]
[1755009770899,1.05504868,119180.0,119170.0,0.00154643]
[1755009771344,1.08004868,119180.0,119170.0,0.00154643]
[1755009772218,0.92780868,119180.0,119170.0,0.00154643]
[1755009772451,1.05804868,119180.0,119170.0,0.00154643]
[1755009772882,1.06140968,119180.0,119170.0,0.00154643]
[1755009773096,1.08640968,119180.0,119170.0,0.00154643]
[1755009774793,1.11727615,119180.0,119170.0,0.00154643]
[1755009775860,0.39475756,119180.0,119170.0,0.00154643]
[1755009776069,1.06727615,119180.0,119170.0,0.00154643]
[1755009776297,1.09227615,119180.0,119170.0,0.00154643]
[1755009777163,1.11029301,119180.0,119170.0,0.00154643]
[1755009778260,1.08529301,119180.0,119170.0,0.00154643]
[1755009778469,1.11029301,119180.0,119170.0,0.00154643]
[1755009780247,1.11029504,119180.0,119170.0,0.00154643]
[1755009781280,1.13285965,119180.0,119170.0,0.00154643]
[1755009783269,1.1378156,119180.0,119170.0,0.00154643]
[1755009783479,1.1628156,119180.0,119170.0,0.00154643]
[1755009784330,1.14025099,119180.0,119170.0,0.00154643]
[1755009784777,1.11525099,119180.0,119170.0,0.00154643]
[1755009784988,1.14025099,119180.0,119170.0,0.00154643]
[1755009785210,1.15523007,119180.0,119170.0,0.00154643]
[1755009785874,1.13023007,119180.0,119170.0,0.00154643]
[1755009786084,1.15523007,119180.0,119170.0,0.00154643]
[1755009787170,1.08529615,119180.0,119170.0,0.00154643]
[1755009787381,1.11812885,119180.0,119170.0,0.00154643]
[1755009788030,1.09312885,119180.0,119170.0,0.00154643]
[1755009788237,1.13379832,119180.0,119170.0,0.00154643]
[1755009788415,1.18417832,119180.0,119170.0,0.00154643]
[1755009788668,1.13379832,119180.0,119170.0,0.00154643]
[1755009790129,1.10879832,119180.0,119170.0,0.00154643]
[1755009790349,1.13379832,119180.0,119170.0,0.00154643]
[1755009790729,1.10879832,119180.0,119170.0,0.00154643]
[1755009790943,1.10879832,119180.0,119170.0,0.00364643]
[1755009791147,1.13381434,119180.0,119170.0,0.00364643]
[1755009791351,0.97562434,119180.0,119170.0,0.00364643]
[1755009791558,0.56425573,119180.0,119170.0,0.00661643]
[1755009791780,1.13153432,119180.0,119170.0,0.00661643]
[1755009792022,1.16350173,119180.0,119170.0,0.00661643]
[1755009792233,0.56573328,119180.0,119170.0,0.00661643]
[1755009792437,0.54828426,119180.0,119170.0,0.00661643]
[1755009792648,0.48619652,119180.0,119170.0,0.00661643]
[1755009793281,0.40347327,119180.0,119170.0,0.00661643]
[1755009796575,0.02301545,119180.0,119170.0,0.74172249]
[1755009796794,0.13516,119180.0,119170.0,0.74172249]
[1755009797009,0.17281339,119180.0,119170.0,0.1744439]
[1755009797650,0.17281339,119180.0,119170.0,0.74172249]
[1755009797858,0.17281339,119180.0,119170.0,0.1744439]
[1755009798081,0.22169221,119180.0,119170.0,0.1744439]
[1755009798287,0.21669221,119180.0,119170.0,0.1734439]
[1755009798735,0.21669221,119180.0,119170.0,0.1744439]
[1755009799653,0.2358186,119180.0,119170.0,0.1744439]
[1755009800319,0.2358186,119180.0,119170.0,0.00364643]
[1755009800538,0.2358186,119180.0,119170.0,0.1714739]
[1755009800770,0.23582054,119180.0,119170.0,0.00364643]
[1755009800982,0.23582054,119180.0,119170.0,0.1714739]
[1755009801194,0.23582054,119180.0,119170.0,0.00661643]
[1755009802917,0.23582054,119180.0,119170.0,0.1744439]
[1755009803820,0.80835913,119180.0,119170.0,0.00154643]
[1755009804027,0.24108054,119180.0,119170.0,0.00154643]
[1755009804275,0.80835913,119180.0,119170.0,0.00364643]
[1755009804492,0.24108054,119180.0,119170.0,0.00364643]
[1755009804739,0.19220172,119180.0,119170.0,0.00364643]
[1755009804955,0.17407339,119180.0,119170.0,0.00364643]
[1755009805162,0.16881339,119180.0,119170.0,0.00364643]
[1755009805836,0.17407339,119180.0,119170.0,0.00364643]
[1755009806248,0.17407339,119180.0,119170.0,0.00154643]
[1755009806424,0.25655782,119180.0,119170.0,0.00154643]
[1755009807620,0.38137782,119180.0,119170.0,0.1744439]
[1755009808019,0.38137782,119180.0,119170.0,0.00364643]
[1755009809423,0.38349782,119180.0,119170.0,0.00364643]
[1755009809630,0.38663782,119180.0,119170.0,0.00364643]
[1755009809839,0.001,119180.0,119170.0,0.74382033]
[1755009810051,0.001,119180.0,119170.0,0.74172249]
[1755009811916,0.001,119180.0,119170.0,0.82444574]
[1755009812455,0.001,119180.0,119170.0,0.82448574]
[1755009814617,0.001,119180.0,119170.0,2.21283683]
[1755009814836,0.001,119180.0,119170.0,2.18851574]
[1755009815246,0.001,119180.0,119170.0,2.21344563]
[1755009815469,0.0676104,119210.0,119200.0,0.16778523]
[1755009815682,0.07437144,119210.0,119200.0,0.95202438]
[1755009815880,0.07437144,119210.0,119200.0,0.82285707]
[1755009816046,0.07437144,119210.0,119200.0,0.95289707]
[1755009817360,0.07437144,119210.0,119200.0,0.38561848]
[1755009817587,0.07437144,119210.0,119200.0,0.95293707]
[1755009818720,0.07437144,119210.0,119200.0,0.95493707]
[1755009818943,0.07437144,119210.0,119200.0,0.95593707]
[1755009820314,0.07437144,119210.0,119200.0,0.95589707]
[1755009820704,0.2472626,119210.0,119200.0,0.17082523]
[1755009821447,0.2472626,119210.0,119200.0,0.16882523]
[1755009821647,0.2472626,119210.0,119200.0,0.16782523]
[1755009821889,0.2472626,119210.0,119200.0,0.16882523]
[1755009822107,0.2482626,119210.0,119200.0,0.16782523]
[1755009822513,0.24150156,119210.0,119200.0,0.16882523]
[1755009822736,0.0737304,119210.0,119200.0,0.73610382]
[1755009822949,0.0737304,119210.0,119200.0,0.73820382]
[1755009824349,0.0686104,119210.0,119200.0,0.73820382]
[1755009824595,0.24150156,119210.0,119200.0,0.73610382]
[1755009825152,0.28242747,119210.0,119200.0,0.00104]
[1755009825756,0.84970606,119210.0,119200.0,0.00104]
[1755009826215,0.87364606,119210.0,119200.0,0.00104]
[1755009826368,0.93289242,119210.0,119200.0,0.00104]
[1755009826569,0.95095444,119210.0,119200.0,0.00104]
[1755009826983,0.94995444,119210.0,119200.0,0.00104]
[1755009827182,0.95295444,119210.0,119200.0,0.00104]
[1755009827623,0.95495444,119210.0,119200.0,0.00104]
[1755009827959,1.03743887,119210.0,119200.0,0.00104]
[1755009830523,0.47016028,119210.0,119200.0,0.00104]
[1755009830731,1.03743887,119210.0,119200.0,0.00104]
[1755009831359,1.06598257,119210.0,119200.0,0.00104]
[1755009832029,0.49870398,119210.0,119200.0,0.00104]
[1755009832208,1.04331406,119210.0,119200.0,0.00104]
[1755009835192,1.06851206,119210.0,119200.0,0.00104]
[1755009837844,0.50123347,119210.0,119200.0,0.00104]
[1755009838059,1.06851206,119210.0,119200.0,0.00104]
[1755009838267,1.05045004,119210.0,119200.0,0.00104]
[1755009838475,1.10083004,119210.0,119200.0,0.00104]
[1755009838692,1.05045004,119210.0,119200.0,0.00104]
[1755009839121,1.05045162,119210.0,119200.0,0.00104]
[1755009839544,1.04457485,119210.0,119200.0,0.00104]
[1755009839770,0.98284146,119210.0,119200.0,0.00104]
[1755009840431,1.42884146,119210.0,119200.0,0.00104]
[1755009841514,1.42884129,119210.0,119200.0,0.00104]
[1755009841960,1.42296445,119210.0,119200.0,0.00104]
[1755009842435,1.39902445,119210.0,119200.0,0.00104]
[1755009844695,0.83174586,119210.0,119200.0,0.00104]
[1755009844907,1.39902445,119210.0,119200.0,0.00104]
[1755009845362,1.39902445,119210.0,119200.0,0.00314]
[1755009846014,1.39902445,119210.0,119200.0,0.00104]
[1755009848358,0.96166586,119210.0,119200.0,0.00313]
[1755009849018,1.52894445,119210.0,119200.0,0.00313]
[1755009851399,1.39902445,119210.0,119200.0,0.00313]
[1755009851609,1.52579445,119210.0,119200.0,0.00313]
[1755009851827,1.52895445,119210.0,119200.0,0.00313]
[1755009852089,1.52895445,119210.0,119200.0,0.00104]
[1755009852716,1.52895445,119210.0,119200.0,0.00313]
[1755009853136,1.50375645,119210.0,119200.0,0.00313]
[1755009853541,0.93647786,119210.0,119200.0,0.00313]
[1755009853745,1.50375645,119210.0,119200.0,0.00313]
[1755009854139,1.50375645,119210.0,119200.0,0.00104]
[1755009857241,1.50375645,119210.0,119150.0,0.18656747]
[1755009857242,0.16784155,119160.0,119150.0,0.18656747]
[1755009857474,0.16783923,119170.0,119160.0,0.16784155]
[1755009857766,0.29771923,119170.0,119160.0,0.16790155]
[1755009857980,0.29770747,119170.0,119160.0,0.73518014]
[1755009858397,0.29770747,119170.0,119160.0,0.16790155]
[1755009858976,0.29770747,119170.0,119160.0,6e-05]
[1755009859196,0.29770747,119170.0,119160.0,0.00506]
[1755009859409,0.34727176,119170.0,119160.0,0.00506]
[1755009859617,0.35043176,119170.0,119160.0,6e-05]
[1755009859823,0.35043176,119170.0,119160.0,0.00106]
[1755009860697,0.35254176,119170.0,119160.0,0.001]
[1755009861333,0.91982035,119170.0,119160.0,0.001]
[1755009861807,1.01999262,119170.0,119160.0,0.001]
[1755009862249,1.0449779,119170.0,119160.0,0.001]
[1755009862451,1.0439779,119170.0,119160.0,0.001]
[1755009862871,0.18529057,119160.0,119150.0,4.883e-05]
[1755009863111,1.05288684,119160.0,119150.0,4.883e-05]
[1755009864153,0.48560825,119160.0,119150.0,4.883e-05]
[1755009864588,0.38543598,119160.0,119150.0,0.00010883]
[1755009864795,0.38116598,119160.0,119150.0,0.00010883]
[1755009865487,0.25132598,119160.0,119150.0,0.16796447]
[1755009865698,0.29868155,119160.0,119150.0,0.73524306]
[1755009866072,0.16884155,119160.0,119150.0,0.73524306]
[1755009867361,0.16884155,119160.0,119150.0,0.00010883]
[1755009867569,0.17200155,119160.0,119150.0,0.00010883]
[1755009868234,0.17411155,119160.0,119150.0,0.00010883]
[1755009868429,0.22614588,119160.0,119150.0,0.00010883]
[1755009868664,0.22614588,119160.0,119150.0,4.883e-05]
[1755009868859,0.79342447,119160.0,119150.0,4.883e-05]
[1755009869070,0.86103487,119160.0,119150.0,4.883e-05]
[1755009871349,0.29375628,119160.0,119150.0,4.883e-05]
[1755009871791,0.22614588,119160.0,119150.0,4.883e-05]
[1755009872289,0.22614588,119160.0,119150.0,0.00010883]
[1755009873140,0.22614588,119160.0,119150.0,4.883e-05]
[1755009874066,0.22614588,119160.0,119150.0,0.00010883]
[1755009874317,0.22614588,119160.0,119150.0,0.73524306]
[1755009874318,0.18287433,119160.0,119150.0,0.73524306]
[1755009874564,0.35071588,119160.0,119150.0,0.73524306]
[1755009874783,0.001,119160.0,119150.0,0.73524306]
[1755009875000,0.16884155,119160.0,119150.0,0.73524306]
[1755009875236,0.001,119160.0,119150.0,0.73524306]
[1755009875886,0.16884155,119160.0,119150.0,0.73524306]
[1755009876130,0.001,119160.0,119150.0,0.73524306]
[1755009876588,0.16884155,119160.0,119150.0,0.73524306]
[1755009877274,0.001,119160.0,119150.0,0.73524306]
[1755009877703,0.16884155,119160.0,119150.0,0.73524306]
[1755009878690,0.22575088,119160.0,119150.0,0.16796447]
[1755009879214,0.22575088,119160.0,119150.0,0.16790447]
[1755009879415,0.22575088,119160.0,119150.0,4.883e-05]
[1755009879744,0.22575088,119160.0,119150.0,0.16790447]
[1755009880218,0.22066088,119160.0,119150.0,0.73524306]
[1755009880883,0.22362088,119160.0,119150.0,0.16796447]
[1755009881911,0.22575088,119160.0,119150.0,0.16796447]
[1755009884230,0.22362088,119160.0,119150.0,0.16796447]
[1755009884443,0.16884155,119160.0,119150.0,0.73524306]
[1755009885095,0.17180155,119160.0,119150.0,0.16796447]
[1755009885910,0.17180155,119160.0,119150.0,0.73524306]
[1755009887869,0.001,119160.0,119150.0,0.86500306]
[1755009888093,0.001,119160.0,119150.0,0.86504306]
[1755009889170,0.001,119160.0,119150.0,0.94776631]
[1755009890018,0.001,119160.0,119150.0,1.5150449]
[1755009890464,0.001,119160.0,119150.0,1.5200449]
[1755009890666,0.0705704,119190.0,119180.0,0.16781339]
[1755009890867,0.10822639,119190.0,119180.0,0.73724964]
[1755009891140,0.0705704,119190.0,119180.0,0.73515198]
[1755009891340,0.0676104,119190.0,119180.0,0.73515198]
[1755009892109,0.0676104,119190.0,119180.0,0.73523148]
[1755009892974,0.0696104,119190.0,119180.0,0.73623148]
[1755009893851,0.0725704,119190.0,119180.0,0.73623148]
[1755009894575,0.0696104,119190.0,119180.0,0.81895473]
[1755009896425,0.002,119190.0,119180.0,0.81895473]
[1755009896632,0.002,119190.0,119180.0,0.81899473]
[1755009897071,0.002,119190.0,119180.0,0.81895473]
[1755009899684,0.17488931,119190.0,119180.0,0.29857289]
[1755009899888,0.20915686,119190.0,119180.0,0.29857289]
[1755009900562,0.27676726,119190.0,119180.0,0.0010795]
[1755009900987,0.40644726,119190.0,119180.0,0.0010795]
[1755009901202,0.97372585,119190.0,119180.0,0.0010795]
[1755009901627,1.0802891,119190.0,119180.0,0.0010795]
[1755009902894,1.09773812,119190.0,119180.0,0.0010795]
[1755009903334,1.15773812,119190.0,119180.0,0.0010795]
[1755009910225,1.09012772,119190.0,119180.0,0.0010795]
[1755009911670,1.11532972,119190.0,119180.0,0.0010795]
[1755009911870,0.54805113,119190.0,119180.0,0.0010795]
[1755009912049,1.11532972,119190.0,119180.0,0.0010795]
[1755009914457,1.56132972,119190.0,119180.0,0.0010795]
[1755009916813,0.99405113,119190.0,119180.0,0.0010795]
[1755009917028,1.56132972,119190.0,119180.0,0.0010795]
[1755009917898,1.11532972,119190.0,119180.0,0.0010795]
[1755009918566,1.16572972,119190.0,119180.0,0.0010795]
[1755009919023,1.16372972,119190.0,119180.0,7.95e-05]
[1755009919224,1.16672972,119190.0,119180.0,0.0010795]
[1755009919768,1.16772972,119190.0,119180.0,7.95e-05]
[1755009921270,1.17072972,119190.0,119180.0,7.95e-05]
[1755009922752,0.16784155,119160.0,119150.0,4.883e-05]
[1755009922957,1.00216549,119160.0,119150.0,4.883e-05]
[1755009923478,1.03039149,119160.0,119150.0,4.883e-05]
[1755009923927,0.16788242,119140.0,119120.0,0.17477898]
[1755009924138,0.29748242,119140.0,119130.0,0.1679926]
[1755009924318,0.32723066,119140.0,119130.0,0.73527119]
[1755009924536,0.32723066,119140.0,119130.0,0.73531119]
[1755009924751,0.32423066,119140.0,119130.0,0.1680326]
[1755009924959,0.32423066,119140.0,119130.0,0.73531119]
[1755009925342,0.29548242,119140.0,119130.0,0.73731119]
[1755009925761,0.29548242,119140.0,119130.0,0.56942737]
[1755009925965,0.29548242,119140.0,119130.0,0.1699926]
[1755009926591,0.29548242,119140.0,119130.0,0.00510878]
[1755009926949,0.29548242,119140.0,119130.0,0.1729926]
[1755009927158,0.29548242,119140.0,119130.0,0.00510878]
[1755009927377,0.35177381,119140.0,119130.0,0.00510878]
[1755009927597,0.35177381,119140.0,119130.0,0.1729926]
[1755009927822,0.35177381,119140.0,119130.0,0.57238737]
[1755009928039,0.35177381,119140.0,119130.0,0.74027119]
[1755009928670,0.35177381,119140.0,119130.0,0.57238737]
[1755009928894,0.35177381,119140.0,119130.0,0.1729926]
[1755009929110,0.35177381,119140.0,119130.0,0.57238737]
[1755009930149,0.35675381,119140.0,119130.0,0.00504878]
[1755009930363,1.00675565,119140.0,119130.0,0.00504878]
[1755009930588,1.02420467,119140.0,119130.0,0.00504878]
[1755009931009,1.04841467,119140.0,119130.0,0.00304878]
[1755009931510,1.04941467,119140.0,119130.0,0.00404878]
[1755009931922,1.04841467,119140.0,119130.0,4.878e-05]
[1755009932144,1.05041467,119140.0,119130.0,0.00104878]
[1755009932779,1.05141467,119140.0,119130.0,4.878e-05]